fUSD/lending_fUSD_20260414
["ID","MTS","AMOUNT","RATE_DAILY","PERIOD"]
[420472925,1776125179597,500.0,0.00010699,2]
[420472926,1776125179639,8.68727837,0.00010699,2]
[420472927,1776125179676,491.31272163,0.00010699,2]
[420472928,1776125179721,500.0,0.00010699,2]
[420472929,1776125179784,500.0,0.00010699,2]
[420472930,1776125179846,500.0,0.00010699,2]
[420472931,1776125179893,500.0,0.00010699,2]
[420472932,1776125180074,500.0,0.00010699,2]
[420472933,1776125196189,216.8192085,0.00010613,2]
[420472934,1776125196456,500.0,0.00010699,2]
[420472935,1776125196525,500.0,0.00010699,2]
[420472936,1776125196583,500.0,0.00010699,2]
[420472937,1776125196696,500.0,0.00010699,2]
[420472938,1776125196740,500.0,0.00010699,2]
[420472939,1776125196781,578.21176427,0.00010699,2]
[420472940,1776125196825,500.0,0.00010699,2]
[420472941,1776125196878,500.0,0.00010699,2]
[420472942,1776125196917,500.0,0.00010699,2]
[420472943,1776125196982,500.0,0.00010699,2]
[420472944,1776125205200,281.67057416,0.00010699,2]
[420472945,1776125208738,246.43137303,0.00010699,2]
[420472946,1776125208795,1185.56435841,0.000106,2]
[420472947,1776125208848,7298.52874159,0.000106,2]
[420472948,1776125217040,500.0,0.00010699,2]
[420472949,1776125217167,221.63911048,0.00010699,2]
[420472950,1776125217433,500.0,0.00010699,2]
[420472951,1776125257963,334.70433278,0.00010699,2]
[420472952,1776125281169,300.0,0.00010699,2]
[420472953,1776125319572,8143.66655674,0.000106,2]
[420472954,1776125319611,10000.01,0.000106,2]
[420472955,1776125319658,10000.01,0.000106,2]
[420472956,1776125319699,10000.01,0.000106,2]
[420472962,1776125431750,-150.0,0.00010599,2]
[420472963,1776125431764,-300.0,0.00010599,2]
[420472964,1776125431774,-32.5225775,0.00010599,2]
[420472965,1776125431786,-267.4774225,0.00010599,2]
[420472966,1776125431803,-248.89464395,0.00010599,2]
[420472967,1776125431823,-951.10535605,0.00010599,2]
[420472968,1776125431832,-36285.39450459,0.000106,2]
[420472969,1776125431855,-491.75,0.000106,2]
[420472970,1776125431872,-649.25470858,0.000106,2]
[420472971,1776125431906,-45836.85183009,0.000106,2]
[420472972,1776125431924,-14287.6935653,0.000107,2]
[420472973,1776125431957,-362.36399931,0.000107,2]
[420472974,1776125431998,-727.45325306,0.000107,2]
[420472976,1776125432052,-1700.23783598,0.000107,2]
[420472979,1776125432085,-4318.17622993,0.000107,2]
[420472981,1776125432097,-498.60816711,0.000107,2]
[420472985,1776125432138,-7455.79799992,0.000107,2]
[420472987,1776125432162,-463.04172306,0.000107,2]
[420472989,1776125432184,-4799.10316201,0.000107,2]
[420472990,1776125437942,-277.66969102,0.000107,2]
[420473009,1776125441661,-1049.58695503,0.000107,2]
[420473010,1776125441676,-48088.56229306,0.000107,2]
[420473011,1776125441723,-24999.843357,0.000107,2]
[420473024,1776125442860,-410.32677016,0.000107,2]
[420473027,1776125442885,-603.07101337,0.000107,2]
[420473029,1776125442918,-798.19154895,0.000107,2]
[420473032,1776125443064,-18854.60195867,0.000107,2]
[420473033,1776125443335,-79322.38285036,0.000107,2]
[420473045,1776125445803,-6148.41103479,0.000107,2]
[420473046,1776125445844,-1063.75683969,0.000107,2]
[420473047,1776125445983,-10931.23093888,0.000107,2]
[420473048,1776125446001,-3949.06120022,0.000107,2]
[420473049,1776125446235,-28099.22773341,0.000107,2]
[420473062,1776125482007,10000.01,0.000106,2]
[420473063,1776125482048,10000.01,0.000106,2]
[420473064,1776125482101,10000.01,0.000106,2]
[420473065,1776125482140,10000.01,0.000106,2]
[420473066,1776125482165,10000.01,0.000106,2]
[420473067,1776125482205,10000.01,0.000106,2]
[420473068,1776125482245,10000.01,0.000106,2]
[420473069,1776125482275,10000.01,0.000106,2]
[420473070,1776125482309,10000.01,0.000106,2]
[420473071,1776125482347,10000.01,0.000106,2]
[420473072,1776125531962,-300.0,0.00010599,2]
[420473073,1776125531995,-150.0,0.00010599,2]
[420473074,1776125581360,-4388.01,0.000106,2]
[420473075,1776125581631,300.0,0.00010599,2]
[420473076,1776125584135,-5000.01,0.000106,2]
[420473077,1776125584240,-5000.01,0.000106,2]
[420473078,1776125588584,-168.0,0.00010599,2]
[420473079,1776125588604,-4832.01,0.000106,2]
[420473080,1776125588621,-5000.01,0.000106,2]
[420473081,1776125590174,-5000.01,0.000106,2]
[420473082,1776125590375,-5000.01,0.000106,2]
[420473083,1776125591186,197.16940191,0.00010599,2]
[420473084,1776125591235,500.0,0.00010599,2]
[420473085,1776125591278,500.0,0.00010599,2]
[420473086,1776125591378,355.14737734,0.00010599,2]
[420473087,1776125591474,500.0,0.00010599,2]
[420473088,1776125591582,418.22560658,0.00010599,2]
[420473089,1776125594881,-5000.01,0.000106,2]
[420473090,1776125594906,-5000.01,0.000106,2]
[420473091,1776125596166,-5000.01,0.000106,2]
[420473092,1776125596380,-5000.01,0.000106,2]
[420473093,1776125600071,-5000.01,0.000106,2]
[420473094,1776125600088,-5000.01,0.000106,2]
[420473095,1776125600423,-5315.13806732,0.000106,2]
[420473096,1776125600497,-10000.01,0.000106,2]
[420473097,1776125600619,-10000.01,0.000106,2]
[420473098,1776125600743,-10000.01,0.000106,2]
[420473099,1776125600918,-10000.01,0.000106,2]
[420473100,1776125601025,-10000.01,0.000106,2]
[420473101,1776125601168,-10000.01,0.000106,2]
[420473102,1776125601301,-10000.01,0.000106,2]
[420473103,1776125602166,-5000.01,0.000106,2]
[420473104,1776125602314,-5000.01,0.000106,2]
[420473105,1776125603342,-500.0,0.00010599,2]
[420473106,1776125603398,-500.0,0.00010599,2]
[420473107,1776125603452,-500.0,0.00010599,2]
[420473108,1776125603531,-165.64235286,0.00010599,2]
[420473109,1776125603686,-6668.72529428,0.000106,2]
[420473110,1776125605876,-5000.01,0.000106,2]
[420473111,1776125606031,-5000.01,0.000106,2]
[420473112,1776125606298,-10000.01,0.000106,2]
[420473113,1776125606424,-10000.01,0.000106,2]
[420473114,1776125606603,-10000.01,0.000106,2]
[420473115,1776125606731,-10000.01,0.000106,2]
[420473116,1776125606936,-10000.01,0.000106,2]
[420473117,1776125607003,-10000.01,0.000106,2]
[420473118,1776125607098,-10000.01,0.000106,2]
[420473119,1776125607201,-10000.01,0.000106,2]
[420473120,1776125608291,-5000.01,0.000106,2]
[420473121,1776125608454,-5000.01,0.000106,2]
[420473122,1776125611542,-5000.01,0.000106,2]
[420473123,1776125611866,-5000.01,0.000106,2]
[420473124,1776125614507,-5000.01,0.000106,2]
[420473125,1776125614613,-5000.01,0.000106,2]
[420473126,1776125631707,161.55,0.00010599,2]
[420473127,1776125636008,500.0,0.00010599,2]
[420473128,1776125636106,500.0,0.00010599,2]
[420473129,1776125636170,500.0,0.00010599,2]
[420473130,1776125636226,500.0,0.00010599,2]
[420473131,1776125636320,500.0,0.00010599,2]
[420473132,1776125636368,220.08760918,0.00010599,2]
[420473133,1776125636438,500.0,0.00010599,2]
[420473134,1776125636623,500.0,0.00010599,2]
[420473135,1776125641201,300.0,0.00010599,2]
[420473136,1776125647606,187.0,0.00010599,2]
[420473137,1776125653579,1865.313665,0.00010547,2]
[420473139,1776125701690,1200.0,0.00010599,2]
[420473140,1776125708086,155.0,0.00010599,2]
[420473141,1776125709945,178.0,0.00010599,2]
[420473142,1776125738673,186.91874105,0.00010602,30]
[420473143,1776125739435,280.37811158,0.00010661,30]
[420473144,1776125768124,169.0,0.00010599,2]
[420473145,1776125821528,300.0,0.00010599,2]
[420473146,1776125828563,160.0,0.00010599,2]
[420473147,1776125831086,151.0,0.00010594,2]
[420473148,1776125831734,151.0,0.00010594,2]
[420473149,1776125832317,151.0,0.00010594,2]
[420473150,1776125832943,151.0,0.00010594,2]
[420473151,1776125833529,151.0,0.00010594,2]
[420473152,1776125834133,151.0,0.00010594,2]
[420473153,1776125834837,151.0,0.00010594,2]
[420473154,1776125835429,151.0,0.00010594,2]
[420473155,1776125836043,151.0,0.00010594,2]
[420473156,1776125837748,151.0,0.00010594,2]
[420473157,1776125838134,151.0,0.00010594,2]
[420473158,1776125882838,150.0,0.00010599,2]
[420473159,1776125892433,152.0,0.00010599,2]
[420473160,1776125897361,-3318.62509681,0.000106,2]
[420473161,1776125941171,300.0,0.00010599,2]
[420473162,1776125948260,152.0,0.000106,2]
[420473163,1776126001201,300.0,0.00010599,2]
[420473164,1776126001366,1200.0,0.00010599,2]
[420473165,1776126010965,156.0,0.000106,2]
[420473166,1776126011717,152.0,0.000106,2]
[420473167,1776126054893,1102.75980638,0.000105,2]
[420473168,1776126054933,10000.01,0.000105,2]
[420473169,1776126054959,8126.98779362,0.000105,2]
[420473170,1776126067122,152.0,0.000106,2]
[420473171,1776126077080,152.0,0.00010549,2]
[420473172,1776126089301,1569.02220638,0.00010388,2]
[420473173,1776126089327,2990.49279362,0.00010388,2]
[420473174,1776126089382,320.372,0.00010388,2]
[420473175,1776126127526,152.0,0.000106,2]
[420473176,1776126131112,151.0,0.00010599,2]
[420473177,1776126131363,151.0,0.00010599,2]
[420473178,1776126132024,226.68365907,0.00010599,2]
[420473179,1776126190222,170.46,9.092e-05,2]
[420473180,1776126246069,152.0,0.000106,2]
[420473181,1776126250918,-20000.0,0.000106,2]
[420473182,1776126261685,64357.05896291,0.00016,30]
[420473183,1776126301750,300.0,0.00010599,2]
[420473184,1776126301805,1200.0,0.00010599,2]
[420473185,1776126324157,234.29303295,0.00010599,2]
[420473186,1776126421469,300.0,0.00010599,2]
[420473187,1776126426119,500.0,0.00010599,2]
[420473188,1776126426208,492.7579246,0.00010599,2]
[420473189,1776126439368,598.41444023,0.00010599,2]
[420473190,1776126453512,598.60316414,0.00010599,2]
[420473191,1776126541321,300.0,0.00010599,2]
[420473192,1776126577979,10000.01,0.000105,2]
[420473193,1776126578007,10000.01,0.000105,2]
[420473194,1776126578048,10000.01,0.000105,2]
[420473195,1776126578099,10000.01,0.000105,2]
[420473196,1776126578139,10000.01,0.000105,2]
[420473197,1776126578194,10000.01,0.000105,2]
[420473198,1776126578235,10000.01,0.000105,2]
[420473199,1776126578277,10000.01,0.000105,2]
[420473200,1776126578312,10000.01,0.000105,2]
[420473201,1776126578367,10000.01,0.000105,2]
[420473202,1776126578408,4700.01,0.000105,2]
[420473203,1776126578452,5000.01,0.000105,2]
[420473204,1776126578492,5000.01,0.000105,2]
[420473205,1776126578526,5000.01,0.000105,2]
[420473206,1776126578563,5000.01,0.000105,2]
[420473207,1776126578600,5000.01,0.000105,2]
[420473208,1776126578627,5000.01,0.000105,2]
[420473209,1776126578653,5000.01,0.000105,2]
[420473210,1776126578683,5000.01,0.000105,2]
[420473211,1776126578713,5000.01,0.000105,2]
[420473212,1776126587532,-1925.86951401,0.000105,2]
[420473213,1776126587549,-10000.01,0.000105,2]
[420473214,1776126587665,-10000.01,0.000105,2]
[420473215,1776126587784,-10000.01,0.000105,2]
[420473216,1776126587917,-10000.01,0.000105,2]
[420473217,1776126588022,-10000.01,0.000105,2]
[420473218,1776126588147,-10000.01,0.000105,2]
[420473219,1776126590243,-10000.01,0.000105,2]
[420473220,1776126590406,-10000.01,0.000105,2]
[420473221,1776126590513,-10000.01,0.000105,2]
[420473222,1776126590689,-10000.01,0.000105,2]
[420473223,1776126593916,-814.37239082,0.000105,2]
[420473224,1776126593943,-5000.01,0.000105,2]
[420473225,1776126596475,-5000.01,0.000105,2]
[420473226,1776126597099,-10000.01,0.000105,2]
[420473227,1776126597130,-10000.01,0.000105,2]
[420473228,1776126597178,-10000.01,0.000105,2]
[420473229,1776126597287,-10000.01,0.000105,2]
[420473230,1776126597431,-2419.16250483,0.000105,2]
[420473231,1776126597479,-5161.68499034,0.000105,2]
[420473232,1776126601413,300.0,0.00010599,2]
[420473233,1776126601778,843.0,0.00010599,2]
[420473234,1776126610831,153.0,0.000106,2]
[420473235,1776126611151,156.0,0.000106,2]
[420473241,1776126631808,-414.91469741,0.000106,2]
[420473242,1776126632306,-354229.95480259,0.000106,2]
[420473243,1776126632315,-73.26779335,0.000106,2]
[420473244,1776126632338,-926.73220665,0.000106,2]
[420473245,1776126632348,-361.57564994,0.000106,2]
[420473246,1776126632367,-138.42435006,0.000106,2]
[420473247,1776126632383,-177.69014073,0.000106,2]
[420473248,1776126632395,-72.30985927,0.000106,2]
[420473249,1776126632410,-174.20362891,0.00010603,2]
[420473250,1776126632419,-250.0,0.00010624,2]
[420473251,1776126632428,-578.91651182,0.000107,2]
[420473252,1776126632439,-13377.96,0.000107,2]
[420473253,1776126632463,-6791.95516817,0.000107,2]
[420473254,1776126632482,-278.52586619,0.000107,2]
[420473255,1776126632516,-6945.14459819,0.000107,2]
[420473256,1776126632538,-467.29685263,0.000107,2]
[420473310,1776126639160,-17800.45971582,0.000107,2]
[420473312,1776126639178,-370.25816643,0.000107,2]
[420473314,1776126639189,-273.62613258,0.000107,2]
[420473317,1776126639222,-18542.795535,0.000107,2]
[420473321,1776126639295,-1730.10614,0.000107,2]
[420473333,1776126639493,-12935.05003534,0.000107,2]
[420473373,1776126640230,-8829.97537342,0.000107,2]
[420473374,1776126640242,-8947.21879473,0.000107,2]
[420473375,1776126640262,-8943.78386462,0.000107,2]
[420473376,1776126640275,-9077.54866152,0.000107,2]
[420473377,1776126640333,-1649.00125136,0.000107,2]
[420473378,1776126642437,-2878.97317672,0.000107,2]
[420473379,1776126642523,-6507.16039898,0.000107,2]
[420473386,1776126642982,-6315.3454475,0.000107,2]
[420473387,1776126643139,-1877.11396906,0.000107,2]
[420473388,1776126643339,-39409.81527793,0.000107,2]
[420473389,1776126643395,-619.0,0.000107,2]
[420473391,1776126646003,-774.09625814,0.000107,2]
[420473392,1776126646106,-9559.21788676,0.000107,2]
[420473393,1776126646328,-1541.0976053,0.00010605,2]
[420473394,1776126646343,-322.8916,0.00010605,2]
[420473395,1776126646399,-2913.12018298,0.00010605,2]
[420473396,1776126646460,10000.01,0.000105,2]
[420473397,1776126646490,10000.01,0.000105,2]
[420473398,1776126646516,10000.01,0.000105,2]
[420473399,1776126646544,10000.01,0.000105,2]
[420473400,1776126646571,10000.01,0.000105,2]
[420473401,1776126646613,10000.01,0.000105,2]
[420473402,1776126646645,10000.01,0.000105,2]
[420473403,1776126646690,10000.01,0.000105,2]
[420473405,1776126646738,10000.01,0.000105,2]
[420473406,1776126646802,10000.01,0.000105,2]
[420473407,1776126646872,5000.01,0.000105,2]
[420473408,1776126646997,5000.01,0.000105,2]
[420473409,1776126647028,5000.01,0.000105,2]
[420473410,1776126647066,-60910.87492689,0.000105,2]
[420473411,1776126647081,-490.43910862,0.000105,2]
[420473412,1776126647092,-3016.57165071,0.000105,2]
[420473413,1776126650895,-3548.01,0.000105,2]
[420473414,1776126653647,-5000.01,0.000105,2]
[420473415,1776126653729,-5000.01,0.000105,2]
[420473416,1776126654605,-10000.01,0.000105,2]
[420473417,1776126654750,-10000.01,0.000105,2]
[420473418,1776126654919,-10000.01,0.000105,2]
[420473419,1776126655071,-10000.01,0.000105,2]
[420473420,1776126655218,-10000.01,0.000105,2]
[420473421,1776126655528,-10000.01,0.000105,2]
[420473422,1776126655674,-10000.01,0.000105,2]
[420473423,1776126655795,-10000.01,0.000105,2]
[420473424,1776126655906,-10000.01,0.000105,2]
[420473425,1776126656061,-10000.01,0.000105,2]
[420473426,1776126656565,-5000.01,0.000105,2]
[420473427,1776126656666,-5000.01,0.000105,2]
[420473428,1776126659688,-5000.01,0.000105,2]
[420473429,1776126659932,-5000.01,0.000105,2]
[420473430,1776126662654,-5000.01,0.000105,2]
[420473431,1776126662730,-5000.01,0.000105,2]
[420473432,1776126665730,-5000.01,0.000105,2]
[420473433,1776126666729,-5000.01,0.000105,2]
[420473434,1776126668330,14479.51095,7.945e-05,2]
[420473435,1776126668669,-5000.01,0.000105,2]
[420473436,1776126668773,-5000.01,0.000105,2]
[420473437,1776126669201,579.63612453,7.943e-05,2]
[420473438,1776126672893,-5000.01,0.000105,2]
[420473439,1776126672932,-5000.01,0.000105,2]
[420473440,1776126673932,305.97,0.0001,2]
[420473441,1776126674853,-5000.01,0.000105,2]
[420473442,1776126674901,-5000.01,0.000105,2]
[420473443,1776126677867,-831.838751,0.00010447,2]
[420473444,1776126677894,-3336.332498,0.00010447,2]
[420473445,1776126678156,-5000.01,0.000105,2]
[420473446,1776126680995,-5000.01,0.000105,2]
[420473447,1776126681231,-5000.01,0.000105,2]
[420473448,1776126689455,781.32955575,0.0001,2]
[420473449,1776126690862,208.15982814,0.0001,2]
[420473450,1776126726249,158.09,5.188e-05,2]
[420473451,1776126726754,158.09,5.706e-05,2]
[420473452,1776126727479,158.09,6.225e-05,2]
[420473453,1776126727535,158.09,6.744e-05,2]
[420473454,1776126727635,158.09,7.263e-05,2]
[420473455,1776126727691,278.0,0.00010103,2]
[420473456,1776126727764,158.09,7.781e-05,2]
[420473457,1776126728945,158.09,8.3e-05,2]
[420473458,1776126729023,158.09,8.819e-05,2]
[420473459,1776126729127,158.09,9.338e-05,2]
[420473460,1776126729236,158.09,9.856e-05,2]
[420473461,1776126733806,163.0,0.00010103,2]
[420473462,1776126737265,200.0,8.9e-05,2]
[420473463,1776126741049,154.0,0.00010103,2]
[420473464,1776126772407,2000.0,9.949e-05,2]
[420473465,1776126786427,414.0,0.00010103,2]
[420473466,1776126793562,163.0,0.00010103,2]
[420473468,1776126808796,200.0,8.8e-05,2]
[420473469,1776126816228,263.0,0.00010076,2]
[420473470,1776126850891,393.0,0.00010177,2]
[420473471,1776126856949,164.0,0.00010177,2]
[420473472,1776126867915,3003.75,0.00010113,2]
[420473473,1776126905804,155.0,0.00010177,2]
[420473474,1776126908137,389.0,0.00010177,2]
[420473475,1776126914789,164.0,0.00010177,2]
[420473476,1776126935244,105.26,9.883e-05,2]
[420473477,1776126935270,394.74,9.883e-05,2]
[420473478,1776126976352,152.0,0.00010054,2]
[420473479,1776126977014,152.0,0.00010054,2]
[420473480,1776126978745,152.0,0.00010054,2]
[420473481,1776126997595,175.0,0.00010002,2]
[420473493,1776127017698,200.0,0.0001,2]
[420473494,1776127039455,166.68,9.997e-05,2]
[420473495,1776127073199,1852.42,9.724e-05,2]
[420473498,1776127200916,-154.0,0.00010113,3]
[420473499,1776127200947,-370.0,0.00010113,3]
[420473500,1776127200981,-164.0,0.00010113,3]
[420473501,1776127201013,-3968.55341825,0.0001015,2]
[420473502,1776127201047,-170.90501259,0.00010187,2]
[420473503,1776127201081,-150.0,0.00010187,2]
[420473504,1776127201112,-161.20657395,0.00010189,2]
[420473505,1776127201149,-4861.33499521,0.000102,2]
[420473507,1776127212269,-155.0,0.00010113,3]
[420473508,1776127212296,-164.0,0.00010113,3]
[420473509,1776127212329,-1200.0,0.00010199,2]
[420473510,1776127212353,-671.66500479,0.000102,2]
[420473511,1776127212406,-250.0,0.000102,2]
[420473512,1776127212453,-256.35751889,0.00010239,14]
[420473513,1776127212492,-250.0,0.00010244,2]
[420473514,1776127212523,-3647.612,0.0001029,2]
[420473515,1776127212556,-256.297,0.0001029,2]
[420473516,1776127212582,-161.20657395,0.00010295,2]
[420473517,1776127212619,-158.09,0.00010375,2]
[420473518,1776127212663,-185.06824773,0.000104,2]
[420473519,1776127212694,-161.20657395,0.000104,2]
[420473520,1776127212715,-535.73707526,0.000104,2]
[420473521,1776127212751,-1947.76000543,0.000104,3]
[420473522,1776127222856,-4811.5466668,0.000104,2]
[420473523,1776127222883,-205.5193075,0.0001049,2]
[420473524,1776127222919,-151.0,0.00010494,2]
[420473525,1776127222944,-500.0,0.00010494,2]
[420473526,1776127222978,-151.0,0.00010494,2]
[420473527,1776127223008,-155.10882546,0.00010494,2]
[420473528,1776127223037,-500.0,0.00010494,2]
[420473529,1776127223089,-151.0,0.00010494,2]
[420473530,1776127223131,-500.0,0.00010494,2]
[420473531,1776127223163,-151.0,0.00010494,2]
[420473532,1776127223187,-500.0,0.00010494,2]
[420473533,1776127223228,-151.0,0.00010494,2]
[420473534,1776127223262,-500.0,0.00010494,2]
[420473535,1776127223304,-151.0,0.00010494,2]
[420473536,1776127223327,-500.0,0.00010494,2]
[420473537,1776127223386,-151.0,0.00010494,2]
[420473538,1776127223430,-500.0,0.00010494,2]
[420473539,1776127223494,-151.0,0.00010494,2]
[420473540,1776127223546,-119.82520024,0.00010494,2]
[420473541,1776127234309,-418.17223565,0.000104,2]
[420473542,1776127234343,-380.17479976,0.00010494,2]
[420473543,1776127234371,-151.0,0.00010494,2]
[420473544,1776127234398,-151.0,0.00010494,2]
[420473545,1776127234432,-151.0,0.00010494,2]
[420473546,1776127234494,-518.84676166,0.00010494,2]
[420473547,1776127234545,-1199.20597015,0.00010494,2]
[420473548,1776127234590,-151.0,0.00010494,2]
[420473549,1776127234665,-151.0,0.00010494,2]
[420473550,1776127234700,-6728.60023278,0.00010499,2]
[420473552,1776127502803,150.0,9.444e-05,2]
[420473553,1776127517458,-155.0,0.00010113,3]
[420473554,1776127517486,-164.0,0.00010113,3]
[420473555,1776127517515,-155.0,0.00010113,3]
[420473556,1776127517546,-351.0,0.00010113,3]
[420473557,1776127517574,-3959.0,0.000102,3]
[420473558,1776127517611,-5216.0,0.000103,5]
[420473559,1776127518486,150.0,9.444e-05,2]
[420473560,1776127518537,150.0,9.444e-05,2]
[420473561,1776127519055,150.0,9.444e-05,2]
[420473562,1776127519148,150.0,9.444e-05,2]
[420473563,1776127520838,150.0,9.444e-05,2]
[420473564,1776127524285,150.0,9.444e-05,2]
[420473565,1776127524444,150.0,9.444e-05,2]
[420473566,1776127524579,150.0,9.444e-05,2]
[420473567,1776127529981,150.0,9.444e-05,2]
[420473568,1776127530451,-164.0,0.00010113,3]
[420473569,1776127530478,-300.0,0.00010289,2]
[420473570,1776127530510,-2918.09,0.0001029,2]
[420473571,1776127530538,-205.038,0.0001029,2]
[420473572,1776127530564,-316.0,0.000103,5]
[420473573,1776127530598,-250.0,0.0001035,2]
[420473574,1776127530627,-1812.3571,0.000104,2]
[420473575,1776127530650,-250.0,0.0001044,2]
[420473576,1776127530689,-150.0,0.00010493,2]
[420473577,1776127530720,-150.23051104,0.00010493,2]
[420473578,1776127530747,-150.0,0.00010493,2]
[420473579,1776127530782,-150.0,0.00010493,2]
[420473580,1776127530807,-150.32300285,0.00010493,2]
[420473581,1776127530834,-500.0,0.00010494,2]
[420473582,1776127530861,-500.0,0.00010494,2]
[420473583,1776127530883,-2033.96138611,0.00010499,2]
[420473584,1776127530951,198.18410946,9.444e-05,2]
[420473585,1776127532323,150.0,9.444e-05,2]
[420473586,1776127536647,150.0,9.444e-05,2]
[420473587,1776127536697,150.0,9.968e-05,2]
[420473588,1776127536831,150.0,9.444e-05,2]
[420473589,1776127553208,467.2,9.952e-05,2]
[420473590,1776127561096,-357.15805018,0.000104,2]
[420473591,1776127565953,334.0,0.0001049,2]
[420473592,1776127572269,164.0,0.0001049,2]
[420473593,1776127580821,-150.0,0.00010493,2]
[420473594,1776127580848,-243.0946929,0.00010493,2]
[420473595,1776127580880,-250.0,0.00010496,2]
[420473596,1776127580911,-300.0,0.00010498,2]
[420473597,1776127580949,-8201.74725692,0.00010499,2]
[420473598,1776127587617,-7915.52452386,0.00010499,2]
[420473599,1776127587644,-155.0,0.00010499,2]
[420473600,1776127587673,-150.60522261,0.00010499,2]
[420473601,1776127587723,-1778.87025353,0.000105,2]
[420473602,1776127589273,-10000.0,0.000105,2]
[420473603,1776127590340,-10000.0,0.000105,2]
[420473604,1776127591520,-10000.0,0.000105,2]
[420473605,1776127592478,-10000.0,0.000105,2]
[420473606,1776127593414,-10000.0,0.000105,2]
[420473607,1776127593759,-10000.0,0.000105,2]
[420473608,1776127594131,-10000.0,0.000105,2]
[420473609,1776127594472,-10000.0,0.000105,2]
[420473610,1776127594788,-10000.0,0.000105,2]
[420473611,1776127595124,-10000.0,0.000105,2]
[420473612,1776127595483,-10000.0,0.000105,2]
[420473613,1776127595884,-10000.0,0.000105,2]
[420473614,1776127596165,-10000.0,0.000105,2]
[420473615,1776127596529,-10000.0,0.000105,2]
[420473616,1776127596854,-10000.0,0.000105,2]
[420473617,1776127597226,-10000.0,0.000105,2]
[420473618,1776127599001,-10000.0,0.000105,2]
[420473619,1776127599100,-10000.0,0.000105,2]
[420473620,1776127599170,-10000.0,0.000105,2]
[420473621,1776127599298,-10000.0,0.000105,2]
[420473622,1776127599397,-10000.0,0.000105,2]
[420473623,1776127599497,-10000.0,0.000105,2]
[420473624,1776127599806,-10000.0,0.000105,2]
[420473625,1776127600131,-10000.0,0.000105,2]
[420473626,1776127600452,-10000.0,0.000105,2]
[420473627,1776127600925,-10000.0,0.000105,2]
[420473628,1776127602564,-10000.0,0.000105,2]
[420473629,1776127603444,-10000.0,0.000105,2]
[420473630,1776127603826,-10000.0,0.000105,2]
[420473631,1776127604201,-10000.0,0.000105,2]
[420473632,1776127604579,-10000.0,0.000105,2]
[420473633,1776127606162,-10000.0,0.000105,2]
[420473634,1776127607249,-10000.0,0.000105,2]
[420473635,1776127616049,-278.78149042,0.000104,2]
[420473636,1776127616084,-2179.11830958,0.000105,2]